[Event "*** Titled Tuesday Blitz"]
[Site "Chess.com"]
[Date "2021.03.09"]
[Round "7"]
[White "zverr1"]
[Black "malakismayil"]
[Result "1-0"]
[WhiteElo "2442"]
[BlackElo "2276"]
[TimeControl "180+1"]
[EndTime "11:23:49 PST"]
[Termination "zverr1 won by checkmate"]

1. e4 {[%clk 0:03:00.9]} 1... e5 {[%clk 0:02:58.7]} 2. Nf3 {[%clk 0:02:59.7]}
2... Nc6 {[%clk 0:02:58.6]} 3. Bc4 {[%clk 0:02:59.1]} 3... Bc5 {[%clk 0:02:58]}
4. b4 {[%clk 0:02:55.7]} 4... Bxb4 {[%clk 0:02:57.3]} 5. c3 {[%clk 0:02:55.9]}
5... Ba5 {[%clk 0:02:56]} 6. O-O {[%clk 0:02:55.3]} 6... Nf6 {[%clk 0:02:53.7]}
7. d4 {[%clk 0:02:54.9]} 7... d6 {[%clk 0:02:05.8]} 8. d5 {[%clk 0:02:54.6]}
8... O-O {[%clk 0:01:52.2]} 9. dxc6 {[%clk 0:02:54]} 9... bxc6 {[%clk
0:01:53.1]} 10. Bg5 {[%clk 0:02:51.7]} 10... h6 {[%clk 0:01:52.4]} 11. Bxf6
{[%clk 0:02:49.4]} 11... Qxf6 {[%clk 0:01:51.8]} 12. Qd3 {[%clk 0:02:42.4]}
12... Bb6 {[%clk 0:01:48]} 13. Nbd2 {[%clk 0:02:41.4]} 13... Bg4 {[%clk
0:01:36.1]} 14. h3 {[%clk 0:02:40.6]} 14... Bh5 {[%clk 0:01:35]} 15. a4 {[%clk
0:02:34.2]} 15... a5 {[%clk 0:01:30.2]} 16. Bb3 {[%clk 0:02:27.7]} 16... Rad8
{[%clk 0:01:27.3]} 17. Nc4 {[%clk 0:02:24.7]} 17... Rfe8 {[%clk 0:01:02.6]} 18.
g4 {[%clk 0:02:14.7]} 18... Bg6 {[%clk 0:01:00.1]} 19. Nxb6 {[%clk 0:02:03.3]}
19... cxb6 {[%clk 0:01:01]} 20. Qe3 {[%clk 0:02:02.8]} 20... d5 {[%clk
0:00:54.5]} 21. Bc2 {[%clk 0:01:46.4]} 21... d4 {[%clk 0:00:44.9]} 22. Qd3
{[%clk 0:01:39.4]} 22... c5 {[%clk 0:00:39.4]} 23. c4 {[%clk 0:01:39.3]} 23...
h5 {[%clk 0:00:31.6]} 24. Kg2 {[%clk 0:01:22.2]} 24... Qf4 {[%clk 0:00:26.1]}
25. Nh2 {[%clk 0:01:14]} 25... Rd6 {[%clk 0:00:25.1]} 26. Rad1 {[%clk
0:00:50.5]} 26... Rf6 {[%clk 0:00:20.9]} 27. f3 {[%clk 0:00:42.4]} 27... h4
{[%clk 0:00:19]} 28. Kh1 {[%clk 0:00:40.9]} 28... Qg3 {[%clk 0:00:18.6]} 29. Qe2
{[%clk 0:00:34.9]} 29... Qxh3 {[%clk 0:00:18.4]} 30. Qg2 {[%clk 0:00:35]} 30...
Qg3 {[%clk 0:00:16.3]} 31. g5 {[%clk 0:00:32.9]} 31... Rfe6 {[%clk 0:00:04.6]}
32. Qxg3 {[%clk 0:00:31.8]} 32... hxg3 {[%clk 0:00:05.5]} 33. Ng4 {[%clk
0:00:32.4]} 33... Bh5 {[%clk 0:00:05.9]} 34. Kg2 {[%clk 0:00:32.1]} 34... Bxg4
{[%clk 0:00:06]} 35. fxg4 {[%clk 0:00:33]} 35... Rg6 {[%clk 0:00:06.6]} 36. Rf5
{[%clk 0:00:29.9]} 36... f6 {[%clk 0:00:03.8]} 37. gxf6 {[%clk 0:00:25.8]} 37...
gxf6 {[%clk 0:00:04.7]} 38. Kxg3 {[%clk 0:00:25.5]} 38... Kf7 {[%clk 0:00:04.9]}
39. Rh1 {[%clk 0:00:25.2]} 39... Reg8 {[%clk 0:00:04.7]} 40. Bd1 {[%clk
0:00:23]} 40... R8g7 {[%clk 0:00:04.2]} 41. Bf3 {[%clk 0:00:20.5]} 41... Ke6
{[%clk 0:00:04]} 42. Rb1 {[%clk 0:00:20.2]} 42... Rb7 {[%clk 0:00:03]} 43. Rb5
{[%clk 0:00:19.4]} 43... Kd6 {[%clk 0:00:03.2]} 44. Kf2 {[%clk 0:00:16.6]} 44...
Rh6 {[%clk 0:00:03.2]} 45. Bg2 {[%clk 0:00:16.3]} 45... Rg6 {[%clk 0:00:03]} 46.
Kf3 {[%clk 0:00:15.7]} 46... Kc6 {[%clk 0:00:03.5]} 47. Bh3 {[%clk 0:00:15.6]}
47... Rbg7 {[%clk 0:00:04]} 48. Rb2 {[%clk 0:00:12.4]} 48... Rh6 {[%clk
0:00:03.9]} 49. Bg2 {[%clk 0:00:11.6]} 49... Rgh7 {[%clk 0:00:04.3]} 50. g5
{[%clk 0:00:10.5]} 50... fxg5 {[%clk 0:00:04.2]} 51. Rxg5 {[%clk 0:00:11.2]}
51... Rf6+ {[%clk 0:00:04.7]} 52. Kg3 {[%clk 0:00:11.4]} 52... Rhf7 {[%clk
0:00:04.7]} 53. Rxe5 {[%clk 0:00:11.3]} 53... Rg6+ {[%clk 0:00:05]} 54. Kh2
{[%clk 0:00:11.8]} 54... Rh7+ {[%clk 0:00:05.3]} 55. Bh3 {[%clk 0:00:12.3]}
55... Rhg7 {[%clk 0:00:05.9]} 56. Re6+ {[%clk 0:00:11]} 56... Rxe6 {[%clk
0:00:05.2]} 57. Bxe6 {[%clk 0:00:11.9]} 57... Rh7+ {[%clk 0:00:05.1]} 58. Kg3
{[%clk 0:00:11.9]} 58... Re7 {[%clk 0:00:05.4]} 59. Bd5+ {[%clk 0:00:11.2]}
59... Kc7 {[%clk 0:00:06.1]} 60. Kf4 {[%clk 0:00:10.8]} 60... Rg7 {[%clk
0:00:06.4]} 61. Ke5 {[%clk 0:00:09.6]} 61... Re7+ {[%clk 0:00:06.1]} 62. Kf6
{[%clk 0:00:09.7]} 62... Rh7 {[%clk 0:00:07]} 63. e5 {[%clk 0:00:10.2]} 63...
Rh6+ {[%clk 0:00:06.4]} 64. Kg5 {[%clk 0:00:10.1]} 64... Rh3 {[%clk 0:00:03.9]}
65. Re2 {[%clk 0:00:08.8]} 65... d3 {[%clk 0:00:03.1]} 66. Rd2 {[%clk
0:00:06.2]} 66... Re3 {[%clk 0:00:03.3]} 67. Kf4 {[%clk 0:00:05.7]} 67... Rh3
{[%clk 0:00:03.7]} 68. e6 {[%clk 0:00:06.1]} 68... Kd6 {[%clk 0:00:03.2]} 69.
Ke4 {[%clk 0:00:07]} 69... Rh4+ {[%clk 0:00:02.8]} 70. Kxd3 {[%clk 0:00:07.5]}
70... Rd4+ {[%clk 0:00:03.7]} 71. Kc3 {[%clk 0:00:08.4]} 71... Rh4 {[%clk
0:00:04]} 72. Re2 {[%clk 0:00:07.7]} 72... Rh3+ {[%clk 0:00:04.2]} 73. Kc2
{[%clk 0:00:07.9]} 73... Ke7 {[%clk 0:00:04.6]} 74. Rf2 {[%clk 0:00:08.4]} 74...
Ra3 {[%clk 0:00:03.8]} 75. Rf7+ {[%clk 0:00:09.3]} 75... Kd6 {[%clk 0:00:03.8]}
76. Rd7+ {[%clk 0:00:10.2]} 76... Ke5 {[%clk 0:00:03.9]} 77. e7 {[%clk
0:00:11.1]} 77... Ra2+ {[%clk 0:00:03.7]} 78. Kb3 {[%clk 0:00:12]} 78... Ra3+
{[%clk 0:00:04.1]} 79. Kxa3 {[%clk 0:00:11.9]} 79... Kd4 {[%clk 0:00:05]} 80.
e8=Q {[%clk 0:00:11.8]} 80... Kc3 {[%clk 0:00:05.9]} 81. Qe3+ {[%clk 0:00:12]}
81... Kc2 {[%clk 0:00:05.8]} 82. Be4# {[%clk 0:00:12.6]} 1-0

[Event "*** Titled Tuesday Blitz"]
[Site "Chess.com"]
[Date "2021.03.09"]
[Round "8"]
[White "ehrenfeld"]
[Black "tusplingher"]
[Result "0-1"]
[WhiteElo "2495"]
[BlackElo "2332"]
[TimeControl "180+1"]
[EndTime "11:26:23 PST"]
[Termination "tusplingher won by resignation"]

1. e4 {[%clk 0:03:00.9]} 1... c5 {[%clk 0:02:59.6]} 2. Nf3 {[%clk 0:03:00]} 2...
g6 {[%clk 0:02:59.4]} 3. Bc4 {[%clk 0:02:56.3]} 3... Nc6 {[%clk 0:02:58.8]} 4.
c3 {[%clk 0:02:56.2]} 4... e6 {[%clk 0:02:56.8]} 5. d4 {[%clk 0:02:55.3]} 5...
cxd4 {[%clk 0:02:57.1]} 6. cxd4 {[%clk 0:02:54.9]} 6... d5 {[%clk 0:02:57.5]} 7.
exd5 {[%clk 0:02:54.4]} 7... exd5 {[%clk 0:02:57.3]} 8. Bb5 {[%clk 0:02:54.2]}
8... Bg7 {[%clk 0:02:55.3]} 9. O-O {[%clk 0:02:53.4]} 9... Ne7 {[%clk
0:02:55.6]} 10. h3 {[%clk 0:02:48.4]} 10... O-O {[%clk 0:02:55.3]} 11. Re1
{[%clk 0:02:47.9]} 11... a6 {[%clk 0:02:54.7]} 12. Bf1 {[%clk 0:02:47.1]} 12...
Nf5 {[%clk 0:02:54]} 13. Bg5 {[%clk 0:02:41.5]} 13... Qb6 {[%clk 0:02:53]} 14.
Nc3 {[%clk 0:02:40.7]} 14... Ncxd4 {[%clk 0:02:45.3]} 15. Nxd4 {[%clk 0:02:29]}
15... Bxd4 {[%clk 0:02:44.1]} 16. Nxd5 {[%clk 0:02:24.4]} 16... Bxf2+ {[%clk
0:02:43.2]} 17. Kh1 {[%clk 0:02:24]} 17... Ng3+ {[%clk 0:02:25.8]} 18. Kh2
{[%clk 0:02:23]} 18... Bg1+ {[%clk 0:02:25.7]} 0-1

[Event "*** Titled Tuesday Blitz"]
[Site "Chess.com"]
[Date "2021.03.09"]
[Round "8"]
[White "Mikhail_Golubev"]
[Black "korkmaz16"]
[Result "1/2-1/2"]
[WhiteElo "2567"]
[BlackElo "2440"]
[TimeControl "180+1"]
[EndTime "11:26:50 PST"]
[Termination "Game drawn by repetition"]

1. e4 {[%clk 0:03:00.9]} 1... c5 {[%clk 0:02:38.4]} 2. Nf3 {[%clk 0:02:59.8]}
2... e6 {[%clk 0:02:38.4]} 3. d4 {[%clk 0:02:58.8]} 3... cxd4 {[%clk 0:02:38.6]}
4. Nxd4 {[%clk 0:02:59.7]} 4... Nf6 {[%clk 0:02:39.2]} 5. Nc3 {[%clk 0:02:59.4]}
5... Nc6 {[%clk 0:02:39.5]} 6. Ndb5 {[%clk 0:02:56.6]} 6... Bb4 {[%clk
0:02:38.2]} 7. Bf4 {[%clk 0:02:42.7]} 7... Nxe4 {[%clk 0:02:34.3]} 8. Nc7+
{[%clk 0:02:28.9]} 8... Kf8 {[%clk 0:02:33.5]} 9. Qf3 {[%clk 0:02:22]} 9... d5
{[%clk 0:02:33.1]} 10. Nxa8 {[%clk 0:02:15.6]} 10... e5 {[%clk 0:02:32.2]} 11.
Bd2 {[%clk 0:02:13.7]} 11... Nd4 {[%clk 0:02:28.5]} 12. Qd1 {[%clk 0:02:09.1]}
12... Qh4 {[%clk 0:02:27.9]} 13. g3 {[%clk 0:02:08.7]} 13... Qf6 {[%clk
0:02:27.4]} 14. Nxe4 {[%clk 0:02:03]} 14... Nf3+ {[%clk 0:02:27]} 15. Ke2 {[%clk
0:01:52.4]} 15... Nd4+ {[%clk 0:02:25.1]} 16. Ke1 {[%clk 0:01:52.5]} 16... Nf3+
{[%clk 0:02:25]} 17. Ke2 {[%clk 0:01:52.8]} 17... Nd4+ {[%clk 0:02:25]} 18. Ke1
{[%clk 0:01:53]} 18... Nf3+ {[%clk 0:02:25.2]} 19. Ke2 {[%clk 0:01:52]} 1/2-1/2

[Event "*** Titled Tuesday Blitz"]
[Site "Chess.com"]
[Date "2021.03.09"]
[Round "8"]
[White "lacafi"]
[Black "Slovak_fighter2000"]
[Result "0-1"]
[WhiteElo "2161"]
[BlackElo "2423"]
[TimeControl "180+1"]
[EndTime "11:27:43 PST"]
[Termination "Slovak_fighter2000 won by resignation"]

1. d4 {[%clk 0:03:00.9]} 1... Nf6 {[%clk 0:02:36.4]} 2. Nf3 {[%clk 0:02:49.3]}
2... g6 {[%clk 0:02:37.3]} 3. c4 {[%clk 0:02:49]} 3... Bg7 {[%clk 0:02:37.3]} 4.
Nc3 {[%clk 0:02:49.3]} 4... d6 {[%clk 0:02:37.6]} 5. e4 {[%clk 0:02:49.5]} 5...
O-O {[%clk 0:02:37.8]} 6. Be2 {[%clk 0:02:50]} 6... Bg4 {[%clk 0:02:36.9]} 7.
O-O {[%clk 0:02:49.7]} 7... Nfd7 {[%clk 0:02:36.2]} 8. Bg5 {[%clk 0:02:43.1]}
8... Nc6 {[%clk 0:02:34.4]} 9. d5 {[%clk 0:02:34.4]} 9... Bxf3 {[%clk
0:02:25.6]} 10. Bxf3 {[%clk 0:02:33.2]} 10... Nd4 {[%clk 0:02:25.1]} 11. Re1
{[%clk 0:02:23.4]} 11... c5 {[%clk 0:02:22.2]} 12. dxc6 {[%clk 0:02:17.6]} 12...
bxc6 {[%clk 0:02:21]} 13. Rc1 {[%clk 0:02:04.1]} 13... Rb8 {[%clk 0:02:08.5]}
14. b3 {[%clk 0:02:03.5]} 14... Re8 {[%clk 0:01:58.9]} 15. g3 {[%clk 0:01:56.9]}
15... Qa5 {[%clk 0:01:56.8]} 16. Na4 {[%clk 0:01:22.6]} 16... Qxg5 {[%clk
0:01:54.2]} 0-1

[Event "*** Titled Tuesday Blitz"]
[Site "Chess.com"]
[Date "2021.03.09"]
[Round "8"]
[White "tgpgoat"]
[Black "LuisFSiles"]
[Result "1/2-1/2"]
[WhiteElo "2182"]
[BlackElo "2294"]
[TimeControl "180+1"]
[EndTime "11:27:50 PST"]
[Termination "Game drawn by agreement"]

1. d4 {[%clk 0:03:00.9]} 1... Nf6 {[%clk 0:02:59.7]} 2. Nf3 {[%clk 0:03:01]}
2... g6 {[%clk 0:02:59.3]} 3. Bg5 {[%clk 0:03:00.3]} 3... Bg7 {[%clk 0:02:59.1]}
4. Nbd2 {[%clk 0:03:00.4]} 4... d5 {[%clk 0:02:58.9]} 5. c3 {[%clk 0:02:57.8]}
5... O-O {[%clk 0:02:57.7]} 6. e3 {[%clk 0:02:54.4]} 6... b6 {[%clk 0:02:56.6]}
7. h3 {[%clk 0:02:53.9]} 7... c5 {[%clk 0:02:54.3]} 8. Bd3 {[%clk 0:02:53.4]}
8... Ba6 {[%clk 0:02:53.7]} 9. Qe2 {[%clk 0:02:51.3]} 9... Bxd3 {[%clk
0:02:51.6]} 10. Qxd3 {[%clk 0:02:52.2]} 10... Nc6 {[%clk 0:02:51.9]} 11. Bf4
{[%clk 0:02:50.8]} 11... Nd7 {[%clk 0:02:48.6]} 12. O-O {[%clk 0:02:48]} 12...
e5 {[%clk 0:02:44.5]} 13. dxe5 {[%clk 0:02:48]} 13... Ndxe5 {[%clk 0:02:44.6]}
14. Nxe5 {[%clk 0:02:47.8]} 14... Nxe5 {[%clk 0:02:42]} 15. Bxe5 {[%clk
0:02:45.1]} 15... Bxe5 {[%clk 0:02:42.9]} 16. Nf3 {[%clk 0:02:45.6]} 16... Bg7
{[%clk 0:02:41.4]} 17. Rad1 {[%clk 0:02:46.2]} 17... d4 {[%clk 0:02:11.6]} 18.
exd4 {[%clk 0:02:45.1]} 18... cxd4 {[%clk 0:02:10.8]} 19. cxd4 {[%clk
0:02:42.3]} 19... Qd5 {[%clk 0:02:10]} 20. b3 {[%clk 0:02:41.1]} 20... Rfd8
{[%clk 0:02:05.8]} 21. Rfe1 {[%clk 0:02:41.2]} 21... h6 {[%clk 0:02:05.1]} 22.
Ne5 {[%clk 0:02:30.6]} 22... Rd6 {[%clk 0:01:59.3]} 23. Qf3 {[%clk 0:02:21.6]}
23... Qxf3 {[%clk 0:01:53]} 24. Nxf3 {[%clk 0:02:21]} 24... Rad8 {[%clk
0:01:53.5]} 25. Re7 {[%clk 0:02:18.5]} 25... a5 {[%clk 0:01:50.7]} 26. Rb7
{[%clk 0:02:18.3]} 26... Bxd4 {[%clk 0:01:44.7]} 27. Rxd4 {[%clk 0:02:14.4]}
27... Rxd4 {[%clk 0:01:44.9]} 28. Nxd4 {[%clk 0:02:15]} 28... Rxd4 {[%clk
0:01:44.5]} 29. Rxb6 {[%clk 0:02:15.6]} 29... Rd1+ {[%clk 0:01:42.4]} 30. Kh2
{[%clk 0:02:15.2]} 30... Rd2 {[%clk 0:01:42.9]} 31. a4 {[%clk 0:02:11.4]} 31...
Rxf2 {[%clk 0:01:42.3]} 32. Rb5 {[%clk 0:02:11.4]} 32... Rb2 {[%clk 0:01:40.7]}
33. Rxa5 {[%clk 0:02:10.6]} 1/2-1/2

[Event "*** Titled Tuesday Blitz"]
[Site "Chess.com"]
[Date "2021.03.09"]
[Round "8"]
[White "zeitnot2006"]
[Black "Supernotar"]
[Result "0-1"]
[WhiteElo "2504"]
[BlackElo "2723"]
[TimeControl "180+1"]
[EndTime "11:27:51 PST"]
[Termination "Supernotar won by resignation"]

1. e4 {[%clk 0:03:00.9]} 1... c6 {[%clk 0:03:00.3]} 2. d4 {[%clk 0:03:00.1]}
2... d5 {[%clk 0:03:01.2]} 3. Nc3 {[%clk 0:03:00]} 3... dxe4 {[%clk 0:03:00.8]}
4. f3 {[%clk 0:03:00.1]} 4... exf3 {[%clk 0:02:59.8]} 5. Nxf3 {[%clk 0:03:01]}
5... Nf6 {[%clk 0:02:59.6]} 6. Bc4 {[%clk 0:03:01.3]} 6... Bf5 {[%clk
0:02:58.3]} 7. O-O {[%clk 0:02:59.7]} 7... e6 {[%clk 0:02:57.2]} 8. Ne5 {[%clk
0:02:58.1]} 8... Bg6 {[%clk 0:02:50.9]} 9. Bg5 {[%clk 0:02:51.7]} 9... Be7
{[%clk 0:02:48.1]} 10. Ne2 {[%clk 0:02:46.5]} 10... O-O {[%clk 0:02:42.1]} 11.
c3 {[%clk 0:02:43.7]} 11... Nd5 {[%clk 0:02:39.4]} 12. Bxe7 {[%clk 0:02:39.5]}
12... Qxe7 {[%clk 0:02:40.3]} 13. Nxg6 {[%clk 0:02:38.9]} 13... hxg6 {[%clk
0:02:40]} 14. Rf3 {[%clk 0:02:34.4]} 14... Nd7 {[%clk 0:02:38.7]} 15. Rh3 {[%clk
0:02:27.1]} 15... N7f6 {[%clk 0:02:35.3]} 16. Qe1 {[%clk 0:02:19]} 16... Nh5
{[%clk 0:02:30.6]} 17. Bxd5 {[%clk 0:02:09.6]} 17... exd5 {[%clk 0:02:28]} 18.
g4 {[%clk 0:02:10.2]} 18... Rae8 {[%clk 0:02:20.3]} 19. gxh5 {[%clk 0:01:49.4]}
19... Qxe2 {[%clk 0:02:20.2]} 20. Qxe2 {[%clk 0:01:50.3]} 20... Rxe2 {[%clk
0:02:20.1]} 21. Rb1 {[%clk 0:01:42]} 21... gxh5 {[%clk 0:02:07.6]} 22. Rxh5
{[%clk 0:01:39.3]} 22... Rfe8 {[%clk 0:02:05.6]} 23. Kf1 {[%clk 0:01:34.1]}
23... Rc2 {[%clk 0:02:03.5]} 0-1

[Event "*** Titled Tuesday Blitz"]
[Site "Chess.com"]
[Date "2021.03.09"]
[Round "8"]
[White "poneis_malditos"]
[Black "TimKett"]
[Result "1-0"]
[WhiteElo "2338"]
[BlackElo "2204"]
[TimeControl "180+1"]
[EndTime "11:27:51 PST"]
[Termination "poneis_malditos won by resignation"]

1. e4 {[%clk 0:03:00.9]} 1... e5 {[%clk 0:02:59.1]} 2. Nc3 {[%clk 0:02:58.9]}
2... Nf6 {[%clk 0:02:58]} 3. f4 {[%clk 0:02:58.4]} 3... d5 {[%clk 0:02:57.3]} 4.
fxe5 {[%clk 0:02:58.9]} 4... Nxe4 {[%clk 0:02:56.9]} 5. Qf3 {[%clk 0:02:59.5]}
5... Nxc3 {[%clk 0:02:52.4]} 6. bxc3 {[%clk 0:03:00.4]} 6... Be7 {[%clk
0:02:50.1]} 7. d4 {[%clk 0:03:00.6]} 7... O-O {[%clk 0:02:49.8]} 8. Bd3 {[%clk
0:03:01.1]} 8... f6 {[%clk 0:02:36.3]} 9. Qh5 {[%clk 0:02:56.2]} 9... g6 {[%clk
0:02:35.4]} 10. Bxg6 {[%clk 0:02:47.4]} 10... hxg6 {[%clk 0:02:32.1]} 11. Qxg6+
{[%clk 0:02:48.3]} 11... Kh8 {[%clk 0:02:32.7]} 12. Qh6+ {[%clk 0:02:42.6]}
12... Kg8 {[%clk 0:02:31.5]} 13. Nf3 {[%clk 0:02:43]} 13... Qe8 {[%clk
0:02:08.2]} 14. O-O {[%clk 0:02:42.2]} 14... Bf5 {[%clk 0:01:25.9]} 15. Nh4
{[%clk 0:02:38.8]} 15... Bxc2 {[%clk 0:01:02]} 16. Rf3 {[%clk 0:02:33.3]} 16...
Bh7 {[%clk 0:00:45.4]} 17. Rg3+ {[%clk 0:02:29.8]} 1-0

[Event "*** Titled Tuesday Blitz"]
[Site "Chess.com"]
[Date "2021.03.09"]
[Round "8"]
[White "CzechmVIII"]
[Black "MrrRefrao"]
[Result "1-0"]
[WhiteElo "2250"]
[BlackElo "2370"]
[TimeControl "180+1"]
[EndTime "11:27:52 PST"]
[Termination "CzechmVIII won by resignation"]

1. e4 {[%clk 0:03:00.9]} 1... f6 {[%clk 0:02:59.7]} 2. d4 {[%clk 0:03:00.3]}
2... c6 {[%clk 0:03:00.1]} 3. Nc3 {[%clk 0:03:00.3]} 3... e6 {[%clk 0:02:58.7]}
4. f4 {[%clk 0:03:00.2]} 4... Kf7 {[%clk 0:02:57.9]} 5. Nf3 {[%clk 0:03:00.2]}
5... Bb4 {[%clk 0:02:58.2]} 6. Bd3 {[%clk 0:02:59.8]} 6... Ne7 {[%clk
0:02:56.5]} 7. O-O {[%clk 0:02:59.8]} 7... d5 {[%clk 0:02:54.2]} 8. Kh1 {[%clk
0:02:54.7]} 8... Bxc3 {[%clk 0:02:45.1]} 9. bxc3 {[%clk 0:02:54.2]} 9... Rf8
{[%clk 0:02:43.1]} 10. Ba3 {[%clk 0:02:47.2]} 10... Kg8 {[%clk 0:02:40.9]} 11.
Qe1 {[%clk 0:02:26]} 11... Nd7 {[%clk 0:02:38.8]} 12. exd5 {[%clk 0:02:05.8]}
12... cxd5 {[%clk 0:02:34.3]} 13. Qxe6+ {[%clk 0:02:04.5]} 13... Rf7 {[%clk
0:02:34.7]} 14. Bxe7 {[%clk 0:01:24.1]} 14... Qxe7 {[%clk 0:02:35.6]} 15. Qxd5
{[%clk 0:01:24.2]} 15... Nb6 {[%clk 0:02:36.5]} 16. Qe4 {[%clk 0:01:12.8]} 16...
Qxe4 {[%clk 0:02:29.6]} 17. Bxe4 {[%clk 0:01:13.7]} 17... Be6 {[%clk 0:02:27.6]}
18. a4 {[%clk 0:01:06.4]} 18... Bc4 {[%clk 0:02:26.3]} 19. Rfe1 {[%clk
0:01:03.2]} 19... Re8 {[%clk 0:02:26.8]} 20. Bxh7+ {[%clk 0:00:51.7]} 20... Kf8
{[%clk 0:02:26.5]} 21. Rxe8+ {[%clk 0:00:49.4]} 1-0

[Event "*** Titled Tuesday Blitz"]
[Site "Chess.com"]
[Date "2021.03.09"]
[Round "8"]
[White "NoGalloNoParty"]
[Black "AldokhinIvan"]
[Result "0-1"]
[WhiteElo "2322"]
[BlackElo "2519"]
[TimeControl "180+1"]
[EndTime "11:27:55 PST"]
[Termination "AldokhinIvan won by resignation"]

1. d4 {[%clk 0:02:52.4]} 1... Nf6 {[%clk 0:02:59.6]} 2. Nf3 {[%clk 0:02:52.1]}
2... g6 {[%clk 0:03:00.1]} 3. c4 {[%clk 0:02:52.1]} 3... Bg7 {[%clk 0:03:00.6]}
4. Nc3 {[%clk 0:02:51.9]} 4... d6 {[%clk 0:03:01.2]} 5. e4 {[%clk 0:02:51.9]}
5... O-O {[%clk 0:03:01.8]} 6. Be2 {[%clk 0:02:51.8]} 6... Nc6 {[%clk
0:03:02.4]} 7. d5 {[%clk 0:02:49.6]} 7... Nb4 {[%clk 0:03:02.8]} 8. O-O {[%clk
0:02:43.1]} 8... Re8 {[%clk 0:03:02.4]} 9. Be3 {[%clk 0:02:27.2]} 9... e6 {[%clk
0:03:02.1]} 10. dxe6 {[%clk 0:02:17.4]} 10... Bxe6 {[%clk 0:03:01.4]} 11. Nd4
{[%clk 0:02:17.2]} 11... Bd7 {[%clk 0:02:58.7]} 12. a3 {[%clk 0:02:15.9]} 12...
Nc6 {[%clk 0:02:58.5]} 13. f3 {[%clk 0:02:07.2]} 13... Nh5 {[%clk 0:02:50.8]}
14. Re1 {[%clk 0:02:00.2]} 14... Qh4 {[%clk 0:02:32.5]} 15. Bf1 {[%clk
0:01:56.3]} 15... Be5 {[%clk 0:02:27.1]} 16. g3 {[%clk 0:01:44.2]} 16... Nxg3
{[%clk 0:02:15.4]} 17. hxg3 {[%clk 0:01:43.6]} 17... Qxg3+ {[%clk 0:02:11.8]}
18. Bg2 {[%clk 0:01:43.3]} 18... Bh3 {[%clk 0:02:10.4]} 19. Re2 {[%clk 0:01:35]}
19... Qh2+ {[%clk 0:01:59.4]} 20. Kf1 {[%clk 0:01:34.5]} 20... Qh1+ {[%clk
0:01:58.1]} 21. Bg1 {[%clk 0:01:33.9]} 21... Bxd4 {[%clk 0:01:52.7]} 0-1

[Event "*** Titled Tuesday Blitz"]
[Site "Chess.com"]
[Date "2021.03.09"]
[Round "8"]
[White "Mbneu"]
[Black "DonBroca"]
[Result "1-0"]
[WhiteElo "2291"]
[BlackElo "2158"]
[TimeControl "180+1"]
[EndTime "11:28:38 PST"]
[Termination "Mbneu won by resignation"]

1. d4 {[%clk 0:03:00.9]} 1... Nf6 {[%clk 0:02:07.9]} 2. c4 {[%clk 0:03:00.1]}
2... e6 {[%clk 0:02:07.7]} 3. Nc3 {[%clk 0:03:00.6]} 3... Bb4 {[%clk 0:02:08]}
4. Bg5 {[%clk 0:03:01]} 4... c5 {[%clk 0:02:08]} 5. d5 {[%clk 0:03:01]} 5... Qa5
{[%clk 0:02:02.8]} 6. Bxf6 {[%clk 0:02:59.7]} 6... gxf6 {[%clk 0:02:02.3]} 7.
Qc2 {[%clk 0:03:00.2]} 7... exd5 {[%clk 0:01:58.2]} 8. cxd5 {[%clk 0:03:01.1]}
8... d6 {[%clk 0:01:58.5]} 9. e3 {[%clk 0:02:55.1]} 9... Nd7 {[%clk 0:01:58.8]}
10. Bd3 {[%clk 0:02:43.6]} 10... Ne5 {[%clk 0:01:58.9]} 11. Ne2 {[%clk 0:02:44]}
11... Rg8 {[%clk 0:01:56.6]} 12. Nf4 {[%clk 0:02:36.8]} 12... b6 {[%clk
0:01:23.6]} 13. O-O {[%clk 0:02:30.2]} 13... Nxd3 {[%clk 0:01:04]} 14. Qxd3
{[%clk 0:02:29.3]} 14... Bxc3 {[%clk 0:00:55.8]} 15. bxc3 {[%clk 0:02:25.9]}
15... Bd7 {[%clk 0:00:47]} 16. Qe4+ {[%clk 0:02:22.6]} 16... Kd8 {[%clk
0:00:46.2]} 17. Qxh7 {[%clk 0:02:14.5]} 17... Rf8 {[%clk 0:00:41.5]} 18. Qg7
{[%clk 0:02:05]} 18... Ke7 {[%clk 0:00:36.1]} 19. Ng6+ {[%clk 0:01:57.2]} 19...
Kd8 {[%clk 0:00:34.6]} 20. Qxf8+ {[%clk 0:01:56.7]} 20... Kc7 {[%clk 0:00:35.5]}
21. Qxa8 {[%clk 0:01:54.5]} 1-0

[Event "*** Titled Tuesday Blitz"]
[Site "Chess.com"]
[Date "2021.03.09"]
[Round "8"]
[White "kubal123"]
[Black "zverr1"]
[Result "0-1"]
[WhiteElo "2273"]
[BlackElo "2446"]
[TimeControl "180+1"]
[EndTime "11:28:43 PST"]
[Termination "zverr1 won by resignation"]

1. Nf3 {[%clk 0:02:57.5]} 1... h6 {[%clk 0:02:58.9]} 2. g3 {[%clk 0:02:58.4]}
2... g5 {[%clk 0:02:58.5]} 3. Bg2 {[%clk 0:02:56]} 3... Bg7 {[%clk 0:02:58.8]}
4. d4 {[%clk 0:02:55.9]} 4... f5 {[%clk 0:02:57.8]} 5. O-O {[%clk 0:02:55.5]}
5... Nf6 {[%clk 0:02:56.7]} 6. c4 {[%clk 0:02:54.8]} 6... O-O {[%clk 0:02:54.5]}
7. Nc3 {[%clk 0:02:55.2]} 7... d6 {[%clk 0:02:54.6]} 8. e4 {[%clk 0:02:52.3]}
8... fxe4 {[%clk 0:02:51.8]} 9. Nd2 {[%clk 0:02:52.8]} 9... Bf5 {[%clk
0:02:43.8]} 10. Ndxe4 {[%clk 0:02:48.4]} 10... c6 {[%clk 0:02:41.9]} 11. Re1
{[%clk 0:02:45.9]} 11... Nbd7 {[%clk 0:02:39.3]} 12. Qb3 {[%clk 0:02:28]} 12...
Qb6 {[%clk 0:02:35.8]} 13. c5+ {[%clk 0:02:02.1]} 13... Qxb3 {[%clk 0:02:35.6]}
14. axb3 {[%clk 0:02:03]} 14... Nxe4 {[%clk 0:02:30.2]} 15. Nxe4 {[%clk
0:02:03.1]} 15... d5 {[%clk 0:02:25.2]} 16. Nc3 {[%clk 0:01:57.7]} 16... Bxd4
{[%clk 0:02:24.7]} 17. Rxe7 {[%clk 0:01:58.2]} 17... Bxc5 {[%clk 0:02:22.7]} 18.
Re1 {[%clk 0:01:56.2]} 18... Bc2 {[%clk 0:02:17.4]} 19. Be3 {[%clk 0:01:55.1]}
19... d4 {[%clk 0:02:13.1]} 20. Bxd4 {[%clk 0:01:52.1]} 20... Bxd4 {[%clk
0:02:14]} 21. Re7 {[%clk 0:01:51.6]} 21... Rf7 {[%clk 0:02:03.9]} 22. Rae1
{[%clk 0:01:50.3]} 22... Bxf2+ {[%clk 0:02:03.1]} 23. Kh1 {[%clk 0:01:50.8]}
23... Bxe1 {[%clk 0:02:03.4]} 24. Rxe1 {[%clk 0:01:49.8]} 24... Raf8 {[%clk
0:02:01.8]} 25. Ne4 {[%clk 0:01:48.6]} 25... Bxe4 {[%clk 0:02:01.5]} 26. Rxe4
{[%clk 0:01:49.5]} 26... Nc5 {[%clk 0:02:00.6]} 27. Re5 {[%clk 0:01:48.9]} 27...
Nd3 {[%clk 0:02:00.2]} 28. Re6 {[%clk 0:01:49.4]} 28... Nf2+ {[%clk 0:01:59.6]}
29. Kg1 {[%clk 0:01:49.2]} 29... Ng4 {[%clk 0:01:57.1]} 30. h3 {[%clk
0:01:48.7]} 30... Rf6 {[%clk 0:01:57.3]} 31. Re7 {[%clk 0:01:48.2]} 31... Nf2
{[%clk 0:01:55.3]} 32. Rxb7 {[%clk 0:01:48.4]} 32... Nd3 {[%clk 0:01:53.5]} 33.
Rxa7 {[%clk 0:01:48.1]} 33... Re6 {[%clk 0:01:47.2]} 34. Rd7 {[%clk 0:01:46.1]}
34... Re1+ {[%clk 0:01:44.6]} 35. Kh2 {[%clk 0:01:46.4]} 35... Ne5 {[%clk
0:01:43.4]} 36. Rd6 {[%clk 0:01:44.7]} 36... Rf2 {[%clk 0:01:41.3]} 37. h4
{[%clk 0:01:44.6]} 37... g4 {[%clk 0:01:40.9]} 38. Rd8+ {[%clk 0:01:42.5]} 38...
Kf7 {[%clk 0:01:39.8]} 0-1